fUSD/lending_fUSD_20240820
["ID","MTS","AMOUNT","RATE_DAILY","PERIOD"]
[335403055,1724194225683,176.15632561,9.909e-05,2]
[335403056,1724194230703,264.6397361,9.999e-05,2]
[335403058,1724194232134,-1198.0,0.00010008,2]
[335403059,1724194232150,-298.91848984,0.00010009,2]
[335403060,1724194232160,-263.62811176,0.00010009,2]
[335403061,1724194232169,-196.98771653,0.00010009,2]
[335403062,1724194232178,-603.72875613,0.00010009,2]
[335403063,1724194232188,-837.75097971,0.00010009,2]
[335403064,1724194232200,-369.0,0.00010024,2]
[335403065,1724194232210,-155.1051597,0.00010026,2]
[335403066,1724194232220,-155.0,0.00010026,2]
[335403067,1724194232230,-155.0,0.00010097,2]
[335403068,1724194232239,-3242.67213209,0.00010471,2]
[335403069,1724194232249,-439.83940532,0.00010505,2]
[335403070,1724194232259,-270.73245212,0.00010713,2]
[335403071,1724194232268,-333.30865963,0.00010713,2]
[335403072,1724194232278,-841.21343528,0.00010844,2]
[335403073,1724194232289,-5329.588042,0.00010844,2]
[335403074,1724194232299,-2896.9700113,0.00010844,2]
[335403075,1724194232310,-420.98804803,0.00010844,2]
[335403076,1724194232326,-849.74568978,0.00010844,2]
[335403077,1724194232459,-194.91725764,0.00010471,2]
[335403078,1724194232469,-2003.09772817,0.00010844,2]
[335403079,1724194232479,-801.98501419,0.00010853,2]
[335403086,1724194238043,-1231.2807963,0.00010097,2]
[335403088,1724194238053,-5368.81646309,0.00010853,2]
[335403090,1724194238062,-4139.90274061,0.0001086,2]
[335403095,1724194238099,-100.0,0.0001086,2]
[335403100,1724194238176,-363.97062925,0.0001086,2]
[335403101,1724194238279,-955.27057878,0.0001086,2]
[335403102,1724194238315,-414.74931863,0.0001086,2]
[335403111,1724194240219,-196.90821001,0.0001086,2]
[335403112,1724194240229,-304.17876895,0.00010862,2]
[335403113,1724194240239,-6170.80147728,0.00010863,2]
[335403114,1724194240248,-6170.80147728,0.00010864,2]
[335403115,1724194240257,-280.77390871,0.00010867,2]
[335403116,1724194240365,-5890.02756857,0.00010867,2]
[335403117,1724194240375,-6170.80147728,0.00010873,2]
[335403118,1724194240385,-155.0,0.0001089,2]
[335403119,1724194240394,-429.76,0.00010899,2]
[335403120,1724194240403,-1518.02409611,0.00010957,2]
[335403121,1724194240413,-5690.304,0.00010957,2]
[335403122,1724194240423,-517.39119716,0.00010958,2]
[335403123,1724194240433,-500.0,0.00010958,2]
[335403124,1724194240442,-500.0,0.00010958,2]
[335403125,1724194240452,-500.0,0.00010958,2]
[335403126,1724194240462,-500.0,0.00010958,2]
[335403127,1724194240471,-344.08069963,0.00010958,2]
[335403128,1724194240481,-500.0,0.00010958,2]
[335403129,1724194240490,-500.0,0.00010958,2]
[335403130,1724194240505,-500.0,0.00010958,2]
[335403131,1724194240514,-500.0,0.00010958,2]
[335403132,1724194240523,-447.67039966,0.00010958,2]
[335403133,1724194240533,-500.0,0.00010958,2]
[335403134,1724194240542,-500.0,0.00010958,2]
[335403135,1724194240551,-500.0,0.00010958,2]
[335403136,1724194240560,-500.0,0.00010958,2]
[335403137,1724194240570,-500.0,0.00010958,2]
[335403138,1724194240579,-500.0,0.00010958,2]
[335403139,1724194240588,-500.0,0.00010958,2]
[335403140,1724194240597,-500.0,0.00010958,2]
[335403141,1724194240607,-500.0,0.00010958,2]
[335403142,1724194240616,-339.89532783,0.00010958,2]
[335403143,1724194240625,-508.36,0.00010958,2]
[335403144,1724194240635,-500.0,0.00010958,2]
[335403145,1724194240645,-500.0,0.00010958,2]
[335403146,1724194240654,-500.0,0.00010958,2]
[335403147,1724194240664,-723.7000812,0.00010989,2]
[335403148,1724194240673,-155.318472,0.00011127,2]
[335403149,1724194240683,-225.59102544,0.00011127,2]
[335403150,1724194240693,-155.0,0.00011336,2]
[335403152,1724194240702,-629.38432589,0.0001212,2]
[335403154,1724194240712,-500.0,0.00012138,2]
[335403156,1724194240721,-240.0,0.0001234,2]
[335403158,1724194240731,-500.0,0.00012366,2]
[335403160,1724194240740,-250.0,0.00012568,2]
[335403162,1724194240749,-263.85,0.00012792,2]
[335403164,1724194240759,-1346.67,0.00012864,2]
[335403165,1724194240768,-350.15,0.00012898,2]
[335403167,1724194240777,-160.0,0.00012935,2]
[335403169,1724194240787,-1952.49,0.00012987,2]
[335403171,1724194240796,-429.76,0.00013163,2]
[335403173,1724194240805,-500.0,0.00013209,2]
[335403175,1724194240815,-500.0,0.00013218,2]
[335403177,1724194240824,-500.0,0.00013227,2]
[335403179,1724194240834,-500.0,0.00013236,2]
[335403181,1724194240844,-500.0,0.00013245,2]
[335403183,1724194240854,-500.0,0.00013253,2]
[335403185,1724194240864,-500.0,0.00013262,2]
[335403187,1724194240874,-500.0,0.00013271,2]
[335403189,1724194240884,-500.0,0.0001328,2]
[335403191,1724194240894,-500.0,0.00013289,2]
[335403193,1724194240903,-500.0,0.00013297,2]
[335403195,1724194240913,-500.0,0.00013306,2]
[335403197,1724194240923,-500.0,0.00013315,2]
[335403199,1724194240932,-500.0,0.00013324,2]
[335403201,1724194240941,-500.0,0.00013333,2]
[335403202,1724194240951,-500.0,0.00013341,2]
[335403204,1724194240960,-500.0,0.0001335,2]
[335403206,1724194240970,-500.0,0.00013359,2]
[335403208,1724194240979,-500.0,0.00013368,2]
[335403210,1724194240988,-500.0,0.00013377,2]
[335403212,1724194240997,-500.0,0.00013385,2]
[335403214,1724194241006,-500.0,0.00013394,2]
[335403216,1724194241016,-500.0,0.00013403,2]
[335403218,1724194241025,-500.0,0.00013412,2]
[335403220,1724194241034,-500.0,0.00013421,2]
[335403222,1724194241044,-500.0,0.00013429,2]
[335403224,1724194241054,-411.8166782,0.00013523,2]
[335403225,1724194241063,-1000.0,0.00013538,2]
[335403227,1724194241073,-500.0,0.00013542,2]
[335403229,1724194241082,-379.69351497,0.0001363,2]
[335403231,1724194241092,-200.0,0.00013699,2]
[335403233,1724194241103,-292.80983131,0.00013699,2]
[335403236,1724194241116,-2458.19016869,0.00013699,2]
[335403237,1724194241125,-816.21775079,0.0001374,2]
[335403240,1724194241140,-656.60656736,0.0001374,2]
[335403242,1724194241152,-70.17568185,0.0001374,2]
[335403244,1724194241161,-495.30431815,0.0001374,2]
[335403261,1724194243159,-195.51,0.00010959,2]
[335403262,1724194243169,-762.69568185,0.0001374,2]
[335403263,1724194243178,-1923.0,0.0001374,2]
[335403264,1724194243187,-622.0,0.0001374,2]
[335403265,1724194243196,-1387.378,0.0001374,2]
[335403266,1724194243206,-3319.0,0.0001374,2]
[335403267,1724194243215,-78.19822824,0.0001374,2]
[335403268,1724194243230,-1094.80177176,0.0001374,2]
[335403269,1724194243239,-289.1567108,0.0001374,2]
[335403270,1724194243251,-443.4506406,0.0001374,2]
[335403271,1724194243262,-31.3926486,0.0001374,2]
[335403272,1724194243271,-150.0,0.0001374,2]
[335403273,1724194243280,-150.0,0.0001374,2]
[335403274,1724194243290,-289.0,0.0001374,2]
[335403275,1724194243299,-249.834,0.0001374,2]
[335403276,1724194243308,-1235.97418,0.0001376,2]
[335403277,1724194243317,-3027.5296,0.0001379,2]
[335403278,1724194243327,-240.0,0.00013882,2]
[335403279,1724194243336,-2000.0,0.000139,2]
[335403280,1724194243346,-200.0,0.000139,2]
[335403281,1724194243355,-2252.80375936,0.00014,2]
[335403282,1724194243367,-378.703701,0.00014,2]
[335403283,1724194243378,-1291.82984587,0.00014,2]
[335403284,1724194243387,-2851.48015413,0.00014101,2]
[335403307,1724194244184,-977.39069926,0.00014101,2]
[335403308,1724194244196,-927.77,0.00014101,2]
[335403309,1724194244210,-293.80853246,0.00014101,2]
[335403310,1724194244221,-1465.55061415,0.00014101,2]
[335403311,1724194244231,-160.0,0.00014552,2]
[335403312,1724194244240,-102.98708732,0.00014652,2]
[335403313,1724194244251,-647.01291268,0.00014652,2]
[335403314,1724194244260,-125.24727662,0.00015,2]
[335403317,1724194246233,-155.0,0.00011336,2]
[335403318,1724194246243,-306.77305504,0.00015,2]
[335403319,1724194246273,-900.0,0.00015,2]
[335403320,1724194246284,-1408.0706955,0.00015,2]
[335403321,1724194246311,-1619.0,0.00015,2]
[335403322,1724194246323,-3151.26942458,0.00015,2]
[335403323,1724194246334,-361.14764114,0.00015,2]
[335403333,1724194437925,200.0,0.0001,2]
[335403334,1724194437947,850.0,0.0001,2]
[335403335,1724194472143,169.46944472,0.0001,2]
[335403343,1724195144871,10929.44746935,9.999e-05,2]
[335403362,1724195302091,7677.0894507,9.899e-05,2]
[335403368,1724195432319,-723.7000812,9.941e-05,2]
[335403369,1724195432329,-1639.62353695,9.988e-05,2]
[335403370,1724195432340,-337.835,9.988e-05,2]
[335403371,1724195432352,-430.86142033,9.988e-05,2]
[335403372,1724195432364,-855.0,9.998e-05,2]
[335403373,1724195432374,-932.17390329,9.999e-05,2]
[335403374,1724195432383,-2284.06912295,0.0001,2]
[335403375,1724195432395,-300.0,0.00010007,2]
[335403376,1724195432405,-211.1434253,0.00010009,2]
[335403377,1724195432415,-136.51335615,0.00010026,2]
[335403378,1724195432460,-191.73548135,0.00010026,2]
[335403379,1724195432469,-155.11525549,0.00010026,2]
[335403380,1724195432479,-155.0,0.00010097,2]
[335403381,1724195432488,-349.73660767,0.00010862,2]
[335403382,1724195432499,-90.10279765,0.00010862,2]
[335403383,1724195432509,-270.2800265,0.00010862,2]
[335403384,1724195432519,-183.48,0.0001087,2]
[335403385,1724195432528,-392.13350579,0.00010979,2]
[335403386,1724195432539,-707.07731665,0.00010979,2]
[335403387,1724195432549,-629.99914214,0.00010979,2]
[335403388,1724195432561,-371.6925449,0.00010979,2]
[335403389,1724195432572,-595.5625,0.00010979,2]
[335403390,1724195432587,-6596.86499052,0.00010979,2]
[335403391,1724195432596,-1258.43002117,0.00010979,2]
[335403392,1724195432606,-155.0,0.00010979,2]
[335403393,1724195432616,-875.58,0.00010993,2]
[335403394,1724195432625,-420.0,0.00011008,2]
[335403395,1724195432634,-300.0,0.00011471,2]
[335403396,1724195432644,-587.0,0.00012108,2]
[335403398,1724195432657,-444.02,0.00012186,2]
[335403400,1724195432666,-600.0,0.00012684,2]
[335403402,1724195432676,-1438.01393635,0.00012938,2]
[335403404,1724195432688,-272.18867714,0.00012938,2]
[335403406,1724195432697,-304.98534172,0.00012981,2]
[335403437,1724195438424,-195.01465828,0.00012981,2]
[335403438,1724195438433,-500.0,0.00012989,2]
[335403439,1724195438443,-500.0,0.00012998,2]
[335403440,1724195438452,-80.13861414,0.00013007,2]
[335403441,1724195438464,-419.86138586,0.00013007,2]
[335403442,1724195438474,-500.0,0.00013016,2]
[335403443,1724195438484,-500.0,0.00013025,2]
[335403444,1724195438493,-500.0,0.00013033,2]
[335403445,1724195438503,-632.76983512,0.00013042,2]
[335403446,1724195438513,-214.61445423,0.00013042,2]
[335403447,1724195438523,-500.0,0.00013042,2]
[335403448,1724195438533,-500.0,0.00013051,2]
[335403449,1724195438543,-255.32504935,0.00013052,2]
[335403450,1724195438553,-677.45967588,0.00013052,2]
[335403451,1724195438573,-19.51545646,0.00013052,2]
[335403453,1724195438583,-218.91005949,0.00013052,2]
[335403455,1724195438592,-62.03448403,0.0001306,2]
[335403631,1724195440423,-437.96551597,0.0001306,2]
[335403633,1724195440434,-500.0,0.00013069,2]
[335403635,1724195440443,-500.0,0.00013077,2]
[335403637,1724195440453,-500.0,0.00013086,2]
[335403639,1724195440463,-155.0,0.00013086,2]
[335403641,1724195440472,-500.0,0.00013095,2]
[335403643,1724195440482,-500.0,0.00013104,2]
[335403645,1724195440491,-500.0,0.00013113,2]
[335403647,1724195440500,-500.0,0.00013121,2]
[335403649,1724195440511,-500.0,0.0001313,2]
[335403650,1724195440520,-500.0,0.00013139,2]
[335403652,1724195440530,-500.0,0.00013148,2]
[335403654,1724195440540,-500.0,0.00013157,2]
[335403656,1724195440550,-500.0,0.00013165,2]
[335403658,1724195440560,-500.0,0.00013174,2]
[335403660,1724195440570,-500.0,0.00013183,2]
[335403662,1724195440579,-500.0,0.00013192,2]
[335403664,1724195440589,-500.0,0.00013201,2]
[335403666,1724195440599,-823.0,0.00013319,2]
[335403668,1724195440609,-6208.67509495,0.00013333,2]
[335403670,1724195440618,-250.0,0.00013576,2]
[335403672,1724195440628,-5113.295,0.0001375,2]
[335403673,1724195440637,-334.141,0.0001375,2]
[335403674,1724195440647,-500.0,0.00013799,3]
[335403675,1724195440656,-622.0,0.0001385,2]
[335403676,1724195440665,-1543.0,0.0001385,2]
[335403677,1724195440674,-1258.0,0.0001385,2]
[335403678,1724195440684,-1923.0,0.0001385,2]
[335403679,1724195440693,-154.598,0.0001385,2]
[335403680,1724195440703,-1137.0,0.0001385,2]
[335403682,1724195440712,-2552.788,0.0001385,2]
[335403685,1724195440722,-1169.0,0.0001385,2]
[335403686,1724195440734,-764.0,0.0001385,2]
[335403688,1724195440744,-963.04272997,0.00013851,2]
[335403690,1724195440753,-250.0,0.00013859,2]
[335403693,1724195440764,-180.0,0.00014072,2]
[335403695,1724195440774,-529.45999155,0.00014164,2]
[335403697,1724195440783,-2751.0,0.00014246,2]
[335403699,1724195440792,-444.02,0.0001445,2]
[335403701,1724195440802,-415.2008792,0.00014509,2]
[335403703,1724195440812,-200.0,0.00014562,2]
[335403705,1724195440822,-379.69351497,0.00014611,2]
[335403707,1724195440831,-411.8166782,0.00014641,2]
[335403708,1724195440841,-1152.0,0.00014651,2]
[335403710,1724195440851,-1113.31182,0.0001485,2]
[335403731,1724195441061,-1000.0,0.00014946,2]
[335403733,1724195441072,-1482.49190712,0.00015,2]
[335403735,1724195441082,-1591.0,0.00015,2]
[335403737,1724195441092,-538.0341324,0.00015,2]
[335403739,1724195441101,-200.0,0.00015,2]
[335403741,1724195441113,-261.63193826,0.00015,15]
[335403743,1724195441122,-300.0,0.00015182,2]
[335403745,1724195441131,-160.0,0.00015193,2]
[335403747,1724195441140,-500.0,0.00015643,2]
[335403749,1724195441150,-167.0,0.00015831,2]
[335403751,1724195441159,-167.0,0.00015831,2]
[335403753,1724195441169,-1403.4508,0.00016069,2]
[335403755,1724195441178,-1613.0,0.00016116,2]
[335403757,1724195441189,-160.0,0.00016169,2]
[335403758,1724195441198,-180.0,0.00016417,2]
[335403760,1724195441207,-300.0,0.00016552,2]
[335403762,1724195441216,-444.02,0.00016714,2]
[335403764,1724195441225,-150.0,0.0001674,2]
[335403766,1724195441235,-1000.0,0.00016815,2]
[335403768,1724195441244,-1165.0,0.0001685,2]
[335403770,1724195441253,-160.0,0.00017092,2]
[335403772,1724195441262,-167.0,0.00017137,2]
[335403774,1724195441272,-1113.31183,0.0001735,2]
[335403776,1724195441281,-260.1248,0.00017578,2]
[335403778,1724195441291,-2363.2838935,0.00017578,2]
[335403784,1724195441336,-258.6849065,0.00017578,2]
[335403786,1724195441345,-195.51,0.00017592,2]
[335403788,1724195441355,-1004.29012754,0.00017659,2]
[335403790,1724195441367,-2599.82267246,0.00017659,2]
[335403792,1724195441376,-10209.6884,0.00017678,2]
[335403794,1724195441386,-2500.0,0.0001769,2]
[335403796,1724195441395,-2258.0,0.00017727,2]
[335403798,1724195441406,-14026.26432748,0.00017732,2]
[335403800,1724195441416,-14026.26432748,0.00017734,2]
[335403802,1724195441426,-14026.26432748,0.00017745,2]
[335403803,1724195441436,-14026.26432748,0.00017748,2]
[335403805,1724195441445,-14026.26432748,0.00017759,2]
[335403807,1724195441454,-14026.26432748,0.00017778,2]
[335403808,1724195441464,-14026.26432748,0.0001778,2]
[335403810,1724195441473,-160.0,0.00017786,2]
[335403811,1724195441483,-14026.26432748,0.0001779,2]
[335403813,1724195441492,-999.42172375,0.00017791,2]
[335403815,1724195441502,-500.0,0.00017799,2]
[335403816,1724195441511,-500.0,0.00017799,2]
[335403818,1724195441520,-500.0,0.00017799,2]
[335403819,1724195441530,-500.0,0.00017799,2]
[335403821,1724195441539,-500.0,0.00017799,2]
[335403822,1724195441548,-500.0,0.00017799,2]
[335403824,1724195441557,-305.40800262,0.00017799,2]
[335403826,1724195441570,-187.59209695,0.00017799,2]
[335403827,1724195441579,-360.0465136,0.00017799,2]
[335403829,1724195441590,-139.9534864,0.00017799,2]
[335403831,1724195441600,-500.0,0.00017799,2]
[335403832,1724195441609,-150.0,0.00017799,2]
[335403834,1724195441619,-2591.95,0.000178,31]
[335403836,1724195441628,-2591.95,0.000178,31]
[335403837,1724195441637,-2591.95,0.000178,31]
[335403839,1724195441647,-2591.95,0.000178,31]
[335403841,1724195441657,-2591.95,0.000178,31]
[335403842,1724195441666,-2591.95,0.000178,31]
[335403844,1724195441676,-2591.95,0.000178,31]
[335403845,1724195441685,-2591.95,0.000178,31]
[335403847,1724195441694,-2591.95,0.000178,31]
[335403849,1724195441704,-2591.95,0.000178,31]
[335403850,1724195441713,-2591.95,0.000178,31]
[335403852,1724195441722,-2591.95,0.000178,31]
[335403854,1724195441731,-2591.95,0.000178,31]
[335403856,1724195441741,-1842.11838489,0.000178,31]
[335404018,1724195443573,-749.83161511,0.000178,31]
[335404020,1724195443583,-2591.95,0.000178,31]
[335404022,1724195443593,-2591.95,0.000178,31]
[335404024,1724195443602,-171.43650429,0.0001787,2]
[335404026,1724195443612,-182.7281,0.0001787,2]
[335404028,1724195443621,-2277.23718914,0.0001788,2]
[335406118,1724196139521,179.42821262,0.00010026,2]
[335406119,1724196193387,162.782967,0.00010026,2]
[335406120,1724196245807,233.86697885,0.00010026,2]
[335406121,1724196334500,446.02209861,0.0001,2]
[335406122,1724196334539,1890.23099038,0.0001,2]
[335406123,1724196334576,1791.13187725,0.0001,2]
[335406125,1724196336813,197.51708385,9.5e-05,2]
[335406126,1724196336840,1040.59847068,9.5e-05,2]
[335406154,1724196553496,1421.0,0.000178,120]
[335406155,1724196553635,281.36,0.000178,120]
[335406156,1724196553874,195.0,0.000178,120]
[335406157,1724196553946,1421.0,0.0001779,120]
[335406158,1724196554319,195.0,0.0001779,120]
[335406159,1724196554407,1421.0,0.0001778,120]
[335406160,1724196554903,195.0,0.0001778,120]
[335406185,1724196632436,-1389.31622362,0.0001,2]
[335406186,1724196632446,-493.96512333,0.00010989,2]
[335406187,1724196632455,-1464.36101874,0.00010989,2]
[335406188,1724196632467,-1868.85369803,0.00010989,2]
[335406189,1724196632482,-2070.57958141,0.00010989,2]
[335406190,1724196632490,-300.0,0.00010992,2]
[335406191,1724196632500,-303.67817076,0.00010993,2]
[335406192,1724196632509,-183.48,0.00011539,2]
[335406193,1724196632518,-501.0,0.00011773,2]
[335406194,1724196632528,-420.0,0.00012079,2]
[335406195,1724196632538,-181.96943446,0.00012268,2]
[335406196,1724196632547,-500.0,0.00012752,2]
[335406197,1724196632557,-500.0,0.00012761,2]
[335406198,1724196632567,-500.0,0.00012769,2]
[335406199,1724196632576,-500.0,0.00012778,2]
[335406200,1724196632586,-500.0,0.00012787,2]
[335406201,1724196632595,-116.85835191,0.00012796,2]
[335406202,1724196632607,-383.14164809,0.00012796,2]
[335406203,1724196632617,-224.93,0.00012804,2]
[335406204,1724196632627,-500.0,0.00012805,2]
[335406205,1724196632637,-500.0,0.00012813,2]
[335406206,1724196632646,-500.0,0.00012822,2]
[335406207,1724196632655,-500.0,0.00012831,2]
[335406208,1724196632665,-500.0,0.0001284,2]
[335406209,1724196632674,-500.0,0.00012849,2]
[335406210,1724196632684,-500.0,0.00012857,2]
[335406211,1724196632694,-500.0,0.00012866,2]
[335406212,1724196632703,-500.0,0.00012875,2]
[335406213,1724196632713,-500.0,0.00012884,2]
[335406214,1724196632723,-500.0,0.00012893,2]
[335406215,1724196632733,-281.65,0.00012893,2]
[335406216,1724196632742,-150.0,0.00012893,2]
[335406217,1724196632751,-500.0,0.00012901,2]
[335406218,1724196632761,-500.0,0.0001291,2]
[335406219,1724196632770,-500.0,0.00012919,2]
[335406220,1724196632780,-500.0,0.00012928,2]
[335406221,1724196632789,-500.0,0.00012937,2]
[335406222,1724196632799,-723.7000812,0.00012938,2]
[335406223,1724196632808,-500.0,0.00012945,2]
[335406224,1724196632817,-500.0,0.00012954,2]
[335406225,1724196632827,-500.0,0.00012963,2]
[335406226,1724196632837,-155.0,0.00012966,2]
[335406227,1724196632846,-500.0,0.00012972,2]
[335406228,1724196632856,-210.77402829,0.00013001,2]
[335406229,1724196632866,-155.0,0.00013052,2]
[335406230,1724196632876,-893.43190844,0.00013052,2]
[335406231,1724196632886,-155.0,0.00013086,2]
[335406232,1724196632896,-155.0,0.00013086,2]
[335406233,1724196632905,-587.0,0.00013274,2]
[335406234,1724196632914,-168.14,0.00013684,2]
[335406235,1724196632924,-2162.14233398,0.00013687,2]
[335406236,1724196632944,-871.38785124,0.00013687,2]
[335406237,1724196632954,-2503.734016,0.00013698,2]
[335406238,1724196632963,-160.0,0.00013721,2]
[335406239,1724196632973,-155.0,0.00013851,2]
[335406240,1724196632983,-155.0,0.00013851,2]
[335406241,1724196632992,-395.98637762,0.0001387,2]
[335406242,1724196633005,-158.24348016,0.0001387,2]
[335406243,1724196633015,-2751.0,0.00013881,2]
[335406244,1724196633025,-200.0,0.00013892,2]
[335406245,1724196633035,-378.65971219,0.00013971,2]
[335406246,1724196633045,-155.0,0.00013971,2]
[335406247,1724196633055,-306.30964202,0.00013971,2]
[335406248,1724196633064,-338.12109929,0.00013971,2]
[335406249,1724196633074,-432.47832469,0.00013971,2]
[335406250,1724196633084,-415.2008792,0.00013971,2]
[335406251,1724196633094,-501.0,0.00014037,2]
[335406252,1724196633104,-500.0,0.00014164,2]
[335406253,1724196633114,-155.0,0.00014225,2]
[335406254,1724196633124,-257.88535117,0.00014225,2]
[335406255,1724196633133,-155.0,0.00014225,2]
[335406256,1724196633143,-250.0,0.00014229,2]
[335406257,1724196633152,-817.14,0.00014234,2]
[335406258,1724196633161,-1000.0,0.00014311,2]
[335406259,1724196633171,-1885.52,0.00014378,2]
[335406260,1724196633181,-250.0,0.00014378,2]
[335406261,1724196633190,-813.801,0.00014538,2]
[335406262,1724196633200,-764.0,0.00014538,2]
[335406263,1724196633209,-564.488,0.00014538,2]
[335406264,1724196633219,-1923.0,0.00014538,2]
[335406265,1724196633229,-1254.0,0.00014538,2]
[335406266,1724196633240,-622.0,0.00014538,2]
[335406267,1724196633249,-823.0,0.00014586,2]
[335406268,1724196633259,-160.0,0.00014759,2]
[335406269,1724196633268,-8419.0,0.00015,2]
[335406270,1724196633278,-962.72216333,0.00015734,2]
[335406271,1724196633287,-167.0,0.00015831,2]
[335406272,1724196633297,-300.0,0.00015834,2]
[335406273,1724196633306,-1152.0,0.00016029,2]
[335406274,1724196633317,-1000.0,0.000161,2]
[335406275,1724196633326,-501.0,0.00016301,2]
[335406276,1724196633336,-200.0,0.00016928,2]
[335406277,1724196633345,-500.0,0.00017,2]
[335406278,1724196633355,-500.0,0.00017,2]
[335406279,1724196633365,-276.38,0.00017,2]
[335406280,1724196633374,-160.0,0.00017152,2]
[335406281,1724196633384,-300.0,0.00017204,2]
[335406282,1724196633394,-167.0,0.00017218,2]
[335406283,1724196633403,-207.45048498,0.00017347,2]
[335406284,1724196633412,-1613.0,0.00017614,2]
[335406285,1724196633421,-150.00694121,0.00017633,2]
[335406286,1724196633431,-48188.7474,0.00017641,2]
[335406287,1724196633441,-214.2,0.00017654,2]
[335406288,1724196633450,-1589.27684425,0.00017656,2]
[335406289,1724196633462,-5910.72315575,0.00017656,2]
[335406290,1724196633473,-172.94506463,0.00017659,2]
[335406291,1724196633482,-179.62485198,0.00017676,2]
[335406292,1724196633492,-336.6124712,0.00017678,2]
[335406293,1724196633504,-2626.3831288,0.00017678,2]
[335406294,1724196633513,-150.0,0.00017691,15]
[335406295,1724196633522,-21678.30666434,0.000177,2]
[335406296,1724196633534,-294.97955866,0.000177,2]
[335406297,1724196633542,-101.67038719,0.000177,2]
[335406301,1724196638473,-210.08103995,0.00010989,2]
[335406302,1724196638484,-89.91896005,0.00010989,2]
[335406303,1724196638495,-105.22084602,0.00010989,2]
[335406304,1724196638505,-155.0,0.00013052,2]
[335406305,1724196638514,-53.77915298,0.00013971,2]
[335406306,1724196638657,-101.22084702,0.00013971,2]
[335406307,1724196638667,-474.32352344,0.000177,2]
[335406308,1724196638678,-249.54729937,0.000177,2]
[335406309,1724196638688,-150.76,0.00017729,2]
[335406310,1724196638697,-1430.18774027,0.00017729,3]
[335406311,1724196638708,-17845.2,0.00017729,3]
[335406312,1724196638720,-7488.65248061,0.00017729,3]
[335406313,1724196638754,-184.67359726,0.00017729,3]
[335406314,1724196638766,-4194.63053826,0.00017729,3]
[335406315,1724196638807,-21176.5981407,0.00017729,3]
[335406316,1724196638816,-21694.79587847,0.00017731,3]
[335406324,1724196640658,-30625.14661863,0.00017731,3]
[335406325,1724196640668,-34879.9616647,0.00017731,3]
[335406326,1724196640678,-9650.06329318,0.00017732,2]
[335406327,1724196640687,-17439.9808324,0.00017732,3]
[335406328,1724196640698,-22507.6914114,0.00017732,3]
[335406329,1724196640708,-3713.32628344,0.00017733,2]
[335406330,1724196640719,-17439.9808324,0.00017734,3]
[335406331,1724196640728,-17439.9808324,0.00017735,3]
[335406332,1724196640738,-22507.6914114,0.00017735,3]
[335406333,1724196640747,-34879.9616647,0.00017737,3]
[335406334,1724196640757,-45015.3828229,0.00017737,3]
[335406335,1724196640766,-34879.9616647,0.00017738,3]
[335406336,1724196640775,-45015.3828229,0.00017738,3]
[335406337,1724196640784,-164.43375961,0.00017739,2]
[335406338,1724196640793,-34879.9616647,0.00017739,3]
[335406339,1724196640803,-22507.6914114,0.00017739,3]
[335406340,1724196640811,-3713.32628344,0.0001774,2]
[335406341,1724196640821,-500.0,0.00017741,2]
[335406342,1724196640830,-500.0,0.00017741,2]
[335406343,1724196640840,-500.0,0.00017741,2]
[335406344,1724196640849,-500.0,0.00017741,2]
[335406345,1724196640858,-93436.09671869,0.00017741,2]
[335406346,1724196640867,-17439.9808324,0.00017743,3]